Cogmind - Beta 12 @@@ ROGUE MODE // 2023.03.04 @ 10:30:07 Player: Benkyo Result: Destroyed by Executioner with Helical Railgun Performance ------------- Evolutions (5) 2500 Regions Visited (10) 2000 Robots Destroyed (201) 1005 Value Destroyed (7230) 7230 Prototype IDs (14) 280 Alien Tech Used (0) 0 Bonus (4470) 4470 TOTAL SCORE: 17485 Bonus ------- Sticky Parts 2000 High Alert Combat Kills 378 Follower Combat Kills 120 Met Warlord at Base 500 MAIN.C Attacked Warlord 500 Warlord Defense Kills 1504 Friendly Fire -532 Cogmind --------- Core Integrity 0/1000 Matter 12/300 Energy 100/100 System Corruption 2% Temperature Cool (0) Movement Core (1400) Ox27 Location -5/Warlord Parts ------- > --- POWER (2) -------- (None) > --- PROPULSION (5) --- (None) > --- UTILITY (7) ------ Huge Storage Unit Targeting Computer Advanced Targeting Computer Core Analyzer > --- WEAPON (3) ------- Mini Assault Cannon > --- INVENTORY (25) --- Coolant Injector Coolant Injector Huge Storage Unit Large Matter Pod (0) Machine Analyzer Core Analyzer Makeshift Hacking Suite Makeshift Hacking Suite Makeshift Hacking Suite Makeshift Hacking Suite Improved System Restoration Module Advanced System Restoration Module Long-range Tractor Beam Dimensional Node Initializer Tesla Rifle Improved EM Pulse Cannon Long-range Proton Cannon Heavy Plasma Cannon Mini Assault Cannon Magnetic Acceleration Cannon Peak State ------------ > --- POWER ------------ Neutrino Core > --- PROPULSION ------- Light Treads Armored Huge Wheel Armored Huge Wheel > --- UTILITY ---------- Armored Scrap Engine Improved Cooling System Huge Storage Unit Improved Sensor Array Targeting Computer Medium Reflective Plating > --- WEAPON ----------- Heavy Ion Cannon Mini Assault Cannon Mini Assault Cannon > --- INVENTORY -------- Coolant Injector Coolant Injector Huge Storage Unit Large Matter Pod Machine Analyzer Advanced Targeting Computer Core Analyzer Core Analyzer Improved Light Armor Plating Improved Light Armor Plating EM Disruption Field Advanced System Restoration Module Tesla Rifle Tesla Rifle Improved EM Pulse Cannon Heavy Ion Cannon Mini Assault Cannon Magnetic Acceleration Cannon Hypervelocity Gauss Cannon Heavy Missile Launcher [Rating: 76] Favorites ----------- Power Heavy Ion Engine Engine Heavy Ion Engine Power Core Neutrino Core Reactor Light Antimatter Reactor Propulsion Light Treads Treads Light Treads Wheel Armored Huge Wheel Utility Targeting Computer Device Armored Scrap Engine Storage Huge Storage Unit Processor Targeting Computer Protection Improved Light Armor Plating Weapon Mini Assault Cannon Energy Gun Improved EM Shotgun Energy Cannon Heavy Ion Cannon Ballistic Gun Precision Assault Rifle Ballistic Cannon Mini Assault Cannon Launcher Heavy Missile Launcher Build | -11 -10 -9 -8 -7 -7 -7 -5 -5 -5 -5 ------- Run | Jun Mat Mat Mat Fac Sto Rec Fac Upp Upp War Slots Evolved 10 | . . 2 2 2 . . 4 . . . Power 1 | . . . . . . . 1 . . . Propulsion 3 | . . . 1 1 . . 1 . . . Utility 5 | . . 2 1 . . . 2 . . . Weapon 1 | . . . . 1 . . . . . . Parts Attached 77 | 6 11 15 7 8 5 . 6 3 10 6 Power 7 | 1 1 2 . 1 . . 1 . 1 . Engine 4 | 1 . 2 . 1 . . . . . . Core 2 | . 1 . . . . . 1 . . . Reactor 1 | . . . . . . . . . 1 . Propulsion 25 | 2 5 4 2 3 2 . 1 1 3 2 Treads 13 | 2 . 2 2 3 1 . . 1 1 1 Leg . | . . . . . . . . . . . Wheel 12 | . 5 2 . . 1 . 1 . 2 1 Hover . | . . . . . . . . . . . Flight . | . . . . . . . . . . . Utility 24 | 1 3 3 4 2 1 . 3 2 4 1 Device 7 | 1 1 . 1 . . . 2 2 . . Storage 1 | . . 1 . . . . . . . . Processor 3 | . 1 . . . . . . . 1 1 Hackware . | . . . . . . . . . . . Protection 13 | . 1 2 3 2 1 . 1 . 3 . Artifact . | . . . . . . . . . . . Weapon 21 | 2 2 6 1 2 2 . 1 . 2 3 Energy Gun 8 | 2 . 5 1 . . . . . . . Energy Cannon 4 | . . . . 1 . . 1 . 1 1 Ballistic Gun 2 | . 1 . . 1 . . . . . . Ballistic Cannon 5 | . 1 1 . . 2 . . . 1 . Launcher 2 | . . . . . . . . . . 2 Special Weapon . | . . . . . . . . . . . Impact Weapon . | . . . . . . . . . . . Slashing Weapon . | . . . . . . . . . . . Piercing Weapon . | . . . . . . . . . . . Special Melee Weapon . | . . . . . . . . . . . Unidentified Prototypes 3 | . . 1 . 1 . . . . . 1 Parts Lost 70 | . 10 13 6 3 5 . 6 1 11 15 Power 9 | . 1 2 . 1 . . 1 . 2 2 Propulsion 23 | . 5 4 1 2 2 . 2 . 3 4 Utility 18 | . 2 1 3 . 1 . 2 1 4 4 Weapon 20 | . 2 6 2 . 2 . 1 . 2 5 Highest Loss Streak 15 | . 3 2 3 2 1 . 2 1 4 15 To Critical Strikes . | . . . . . . . . . . . Average Slot Usage (%) 85 | . 94 97 97 98 91 92 73 73 70 74 Engine 6 | . 9 10 9 6 7 7 1 . . 10 Treads 12 | . 12 8 27 29 16 15 7 3 8 4 Wheel 6 | . 13 13 . . 5 7 6 11 5 4 Device 11 | . 8 11 8 7 7 7 12 16 15 10 Storage 6 | . . 10 9 7 7 7 5 5 5 5 Processor 8 | . 13 11 9 7 7 7 5 5 6 11 Protection 9 | . 4 9 15 14 15 15 9 5 5 4 Energy Gun 6 | . 10 17 17 7 1 . . . . . Energy Cannon 2 | . . . . 6 7 7 5 5 3 . Ballistic Gun 2 | . 10 . . 6 6 . . . . . Ballistic Cannon 8 | . 6 3 . . 6 15 11 11 12 16 Naked Turns . | . . . . . . . . . . . Heaviest Build 137 | 10 12 100 108 122 123 122 137 121 121 107 Greatest Support 84 | 40 40 40 62 84 72 28 56 56 56 26 Greatest Overweight (x) 30 | 1 3 9 1 1 4 4 4 2 10 30 Average Overweight (x) 4 | . . 7 1 1 3 4 3 2 5 10 Largest Inventory Capacity 25 | 5 5 25 25 25 25 25 25 25 25 25 Average Capacity 22 | 5 5 24 25 25 25 25 25 25 25 25 Most Carried 25 | 5 5 25 25 25 25 25 24 20 25 25 Average Carried 20 | 4 4 20 24 24 24 24 20 16 22 24 Final Capacity 25 | 5 5 25 25 25 25 25 25 25 25 25 Final Carried 25 | 5 5 24 23 25 25 25 18 20 25 20 Scrap Engine Consumption 10 | . . . . . . . 5 . . 5 Class Distribution -------------------- 36% | Mutant 28% | Gunner 22% | Tank 10% | Scavenger-Mutant Dominant Class ---------------- Mutant | -10/Materials Mutant | -9/Materials Scavenger-Mutant | -8/Materials Tank | -7/Factory Tank | -7/Storage Tank | -7/Recycling Tank | -5/Factory Gunner | -5/Upper Caves Gunner | -5/Upper Caves Gunner | -5/Warlord Resources | -11 -10 -9 -8 -7 -7 -7 -5 -5 -5 -5 ----------- Run | Jun Mat Mat Mat Fac Sto Rec Fac Upp Upp War Matter Collected 4114 | 307 548 494 60 225 375 96 486 132 1174 217 Remotely . | . . . . . . . . . . . Salvage Created 7776 | 144 1003 1727 1327 1019 1059 121 304 52 590 430 Parts 422 | 7 65 99 78 72 57 3 11 . 20 10 Haulers Intercepted 11 | . 2 4 2 2 1 . . . . . Recyclers Shooed 1 | . . . . . 1 . . . . . Parts Field Recycled . | . . . . . . . . . . . Retrieved Matter . | . . . . . . . . . . . Parts Self-Destructed 17 | . . . . . . . . . 17 . Prevented . | . . . . . . . . . . . Kills | -11 -10 -9 -8 -7 -7 -7 -5 -5 -5 -5 ------- Run | Jun Mat Mat Mat Fac Sto Rec Fac Upp Upp War Combat Hostiles Destroyed 154 | . 22 37 22 18 19 3 8 1 15 9 Guns 66 | . 17 18 15 12 4 . . . . . Cannons 70 | . 5 12 . 4 15 3 8 1 15 7 AOE 12 | . . 5 3 2 . . . . . 2 Classes Destroyed 22 | 3 5 3 1 2 . . 1 . 4 3 Worker 6 | 2 2 2 . . . . . . . . Builder 5 | . 2 1 . 2 . . . . . . Tunneler 2 | 1 . . . . . . 1 . . . Hauler 11 | . 2 4 2 2 1 . . . . . Recycler 3 | 1 1 . . 1 . . . . . . Minesweeper 2 | . . . . . . . . . 2 . Mechanic 1 | . . 1 . . . . . . . . Operator 2 | . . 1 . 1 . . . . . . Watcher 13 | . 3 5 2 1 2 . . . . . Swarmer 24 | . 3 7 4 9 . . 1 . . . Grunt 80 | . 19 22 11 4 6 . 4 . 12 2 Brawler 1 | . . . . . . . . . 1 . Duelist 4 | . . . 1 . 1 2 . . . . Protector 1 | . . . . . . . 1 . . . Sentry 28 | . . 8 6 3 9 . . 1 1 . Specialist 1 | . . . . . . . . . . 1 Hunter 3 | . . . . 1 1 . 1 . . . Programmer 9 | . . . . 1 2 1 2 . . 3 Behemoth 1 | . . . . . . . . . 1 . Striker 1 | . . . . . . . . . . 1 Executioner 2 | . . . . . . . . . . 2 Mutant 1 | . . . . . . . . . 1 . Best Kill Streak 6 | 3 5 5 6 4 5 2 6 1 4 4 Combat Bots Only 5 | . 3 4 4 4 5 2 5 1 4 4 Max Kills in Single Turn 3 | 1 2 3 3 2 2 1 2 1 1 2 Gunslinging . | . . . . . . . . . . . Exploded 3 | . . 2 3 1 . . . . . 1 Melee . | . . . . . . . . . . . Uniques/NPCs Destroyed . | . . . . . . . . . . . Combat | -11 -10 -9 -8 -7 -7 -7 -5 -5 -5 -5 -------- Run | Jun Mat Mat Mat Fac Sto Rec Fac Upp Upp War Damage Taken 11040 | . 1010 1506 720 810 879 217 1273 129 2080 2416 Core 1689 | . 133 323 56 51 88 37 221 . 140 640 Absorbed by Shields 406 | . . . . . . 17 389 . . . Regen/Repaired (Parts) 368 | . . . . . . . 7 . . 361 Core Remaining (%) 65 | 100 46 19 89 . . 74 . . . . Volleys Fired 605 | 7 117 121 53 42 46 7 38 3 131 40 Largest 3 | 2 2 2 2 3 3 3 3 3 3 3 Hottest 177 | 100 100 101 90 138 161 161 161 161 161 177 Shots Fired 1249 | 14 225 222 92 115 128 21 107 9 248 68 Gun 538 | 14 180 130 92 73 49 . . . . . Cannon 708 | . 45 92 . 42 79 21 107 9 248 65 Launcher 3 | . . . . . . . . . . 3 Special . | . . . . . . . . . . . Kinetic 694 | . 142 103 . 42 72 14 74 6 177 64 Thermal 338 | 14 83 39 . 42 46 7 33 3 71 . Explosive 2 | . . . . . . . . . . 2 Electromagnetic 214 | . . 80 92 31 10 . . . . 1 Entropic 1 | . . . . . . . . . . 1 Robot Hit Streak 37 | 6 21 33 36 37 21 4 7 6 19 6 Robot Miss Streak 5 | 3 4 3 5 3 2 3 4 1 4 2 Penetration Max 1 | . . . . . . . . . . 1 Secondary Targets 2 | . 1 . 1 . . . . . . . Max Gunslinging Chain 1 | . 1 . 1 . . . . . . . Shots Hit Robots 834 | 10 161 162 82 82 90 11 56 8 145 27 Core Hits 354 | 5 59 67 56 44 41 5 15 2 41 19 Critical Kills 2 | . . . . . . . . . . 2 Critical Parts Destroyed 6 | . . . . . . . . . 3 3 Critical Strikes 33 | 1 7 4 . . . . 3 . 10 8 Burn 5 | 1 3 1 . . . . . . . . Destroy 10 | . . . . . . . . . 5 5 Blast 18 | . 4 3 . . . . 3 . 5 3 Melee Attacks . | . . . . . . . . . . . Impact . | . . . . . . . . . . . Slashing . | . . . . . . . . . . . Piercing . | . . . . . . . . . . . Sneak Attacks . | . . . . . . . . . . . Combat Hostiles . | . . . . . . . . . . . Follow-up Attacks . | . . . . . . . . . . . Damage Inflicted 18852 | 124 1887 3204 1786 2109 2381 302 1533 220 4000 1306 Guns 6546 | 124 1341 1681 1608 1071 721 . . . . . Cannons 11039 | . 546 1184 . 793 1660 302 1533 220 4000 801 Explosions 1267 | . . 339 178 245 . . . . . 505 Melee . | . . . . . . . . . . . Ramming . | . . . . . . . . . . . Kinetic 9604 | . 1107 1237 . 650 1312 215 1075 139 3099 770 Thermal 5313 | 124 780 786 178 1038 880 87 458 81 901 . Explosive 199 | . . . . . . . . . . 199 Electromagnetic 3430 | . . 1181 1608 421 189 . . . . 31 Impact . | . . . . . . . . . . . Slashing . | . . . . . . . . . . . Piercing . | . . . . . . . . . . . Entropic 306 | . . . . . . . . . . 306 Highest Corruption 5 | . 1 . . . . . 5 5 . 2 Average Corruption 3 | . 1 . . . . . 3 4 . 1 Corruption Purged 5 | . . . . . . . . 5 . . Corruption Blocked . | . . . . . . . . . . . Effects 15 | . . . . . . . 5 9 . 1 Message Errors 4 | . . . . . . . 1 3 . . Matter Fused 2 | . . . . . . . 1 1 . . Heat Flow Errors 1 | . . . . . . . . . . 1 Energy Discharges 4 | . . . . . . . . 4 . . Data Loss (minor) 1 | . . . . . . . . 1 . . Alerts 1 | . . . . . . . 1 . . . Weapon Failures 2 | . . . . . . . 2 . . . Overload Shots . | . . . . . . . . . . . Overflow Damage 220 | . . 15 18 33 13 35 46 . 60 . Projectiles 187 | . . . . 33 13 35 46 . 60 . Explosions 33 | . . 15 18 . . . . . . . Melee . | . . . . . . . . . . . Knockbacks 62 | . 11 12 . . 3 3 13 . 20 . Impact . | . . . . . . . . . . . Kinetic 57 | . 11 10 . . 3 2 13 . 18 . Secondary 5 | . . 2 . . . 1 . . 2 . Self-Inflicted Damage 362 | . . 243 31 88 . . . . . . Shots 10 | . . 7 1 2 . . . . . . Rammed . | . . . . . . . . . . . Targets Rammed . | . . . . . . . . . . . Kicked . | . . . . . . . . . . . Crushed . | . . . . . . . . . . . Highest Temperature 574 | 178 411 291 185 132 332 181 274 6 574 307 Average Temperature 97 | 72 113 75 44 45 94 68 119 4 170 140 Received Heat Transfer 2761 | . 531 495 306 144 270 3 180 36 643 153 Effects 15 | . 5 . . . . . 2 . 7 1 Shutdowns 1 | . 1 . . . . . . . . . Energy Bleed 2 | . 1 . . . . . . . . 1 Interference 5 | . 3 . . . . . 2 . . . Matter Decay 2 | . . . . . . . . . 2 . Short Circuit 2 | . . . . . . . . . 2 . Damage (major) 3 | . . . . . . . . . 3 . Siege Activations . | . . . . . . . . . . . Robots Corrupted 7 | . . 2 5 . . . . . . . Combat Hostiles 6 | . . 2 4 . . . . . . . Parts Fried 23 | . . 9 14 . . . . . . . Impact Corruptions . | . . . . . . . . . . . Robots Melted . | . . . . . . . . . . . Combat Hostiles . | . . . . . . . . . . . Parts Melted 16 | 4 8 1 . 1 1 . . 1 . . Heat Transferred 9233 | 444 2516 1486 250 1336 1184 111 574 111 1221 . Parts Sabotaged . | . . . . . . . . . . . Parts Stolen . | . . . . . . . . . . . Parts Stripped . | . . . . . . . . . . . Power Chain Reactions 16 | . . 9 3 4 . . . . . . Missiles Intercepted . | . . . . . . . . . . . Alert | -11 -10 -9 -8 -7 -7 -7 -5 -5 -5 -5 ------- Run | Jun Mat Mat Mat Fac Sto Rec Fac Upp Upp War Peak Influence 711 | 20 339 711 677 474 444 183 415 . . . Initial 317 | . 13 104 300 264 213 93 317 . . . Average 308 | 7 194 402 498 323 255 78 293 . . . Maximum Alert Level 3 | . 1 3 2 2 2 . 2 . . . Low Security (%) 25 | 100 41 6 . 7 24 100 23 . . . Level 1 44 | . 58 39 19 77 69 . 64 . . . Level 2 28 | . . 51 80 15 5 . 12 . . . Level 3 . | . . 2 . . . . . . . . Level 4 . | . . . . . . . . . . . Level 5 . | . . . . . . . . . . . High Security . | . . . . . . . . . . . Max Security . | . . . . . . . . . . . Squads Dispatched 38 | . 8 6 9 6 6 . 2 . 1 . Investigation 12 | . 7 2 1 1 . . 1 . . . Extermination 5 | . . . . 2 2 . 1 . . . Reinforcement 9 | . 1 4 1 2 1 . . . . . Assault 2 | . . . 1 . . . . . 1 . Garrison 10 | . . . 6 1 3 . . . . . Intercept . | . . . . . . . . . . . Searches Triggered 1 | . . . . . . . 1 . . . Construction Impeded 2 | . . 1 . . 1 . . . . . Haulers Reinforced 1 | . . . . 1 . . . . . . Active Scanning Responses . | . . . . . . . . . . . Cargo Convoy Interrupts 1 | . . . . . . . 1 . . . Stealth | -11 -10 -9 -8 -7 -7 -7 -5 -5 -5 -5 --------- Run | Jun Mat Mat Mat Fac Sto Rec Fac Upp Upp War Distress Signals 9 | . 1 4 . . 2 . 1 . . 1 Communications Jammed . | . . . . . . . . . . . Distress Signals . | . . . . . . . . . . . Times Spotted 252 | . 37 54 31 26 23 5 30 4 30 12 Peak Tracking Total 12 | . 6 5 5 4 4 3 12 3 10 10 Tactical Retreats 24 | . 4 1 5 3 . 1 4 . 6 . Traps | -11 -10 -9 -8 -7 -7 -7 -5 -5 -5 -5 ------- Run | Jun Mat Mat Mat Fac Sto Rec Fac Upp Upp War Traps Triggered 7 | . 5 . . 1 1 . . . . . Indirectly . | . . . . . . . . . . . Trap Hack Attempts . | . . . . . . . . . . . Triggered . | . . . . . . . . . . . Disarmed . | . . . . . . . . . . . Reprogrammed . | . . . . . . . . . . . Reused . | . . . . . . . . . . . Traps Extracted . | . . . . . . . . . . . Installed . | . . . . . . . . . . . Triggered 10 | . . . . . . . . . 1 9 Machines | -11 -10 -9 -8 -7 -7 -7 -5 -5 -5 -5 ---------- Run | Jun Mat Mat Mat Fac Sto Rec Fac Upp Upp War Machines Disabled 7 | . . 1 . 1 2 1 1 . 1 . Max in Single Turn 1 | . . 1 . 1 1 1 1 . 1 . Machines Repaired . | . . . . . . . . . . . Machines Sabotaged . | . . . . . . . . . . . Overloaded Fab Kills . | . . . . . . . . . . . Hacking | -11 -10 -9 -8 -7 -7 -7 -5 -5 -5 -5 --------- Run | Jun Mat Mat Mat Fac Sto Rec Fac Upp Upp War Machines Accessed 49 | . 7 9 5 8 6 11 1 . 1 1 Terminals 34 | . 5 7 4 6 6 5 1 . . . Fabricators . | . . . . . . . . . . . Repair Stations . | . . . . . . . . . . . Recycling Units 10 | . 2 1 1 . . 6 . . . . Scanalyzers 2 | . . 1 . 1 . . . . . . Garrison Access 1 | . . . . 1 . . . . . . Total Hacks 122 | . 21 30 12 21 12 21 3 . 1 1 Successful 57 | . 9 18 7 6 7 8 . . 1 1 Failed 63 | . 12 11 4 15 5 13 3 . . . Catastrophic 16 | . . 2 1 5 3 4 1 . . . Database Lockouts 2 | . . 1 1 . . . . . . . Manual 65 | . 14 12 10 9 2 15 3 . . . Terminals 92 | . 12 25 11 15 12 14 3 . . . Fabricators . | . . . . . . . . . . . Repair Stations . | . . . . . . . . . . . Recycling Units 19 | . 9 2 1 . . 7 . . . . Scanalyzers 6 | . . 3 . 3 . . . . . . Garrison Access 3 | . . . . 3 . . . . . . Terminal Hacks 33 | . 4 13 3 3 6 2 . . 1 1 Record 2 | . . 2 . . . . . . . . Part Schematic 1 | . . 1 . . . . . . . . Robot Analysis 4 | . 2 1 1 . . . . . . . Prototype ID Bank 5 | . 1 3 . 1 . . . . . . Open Door 3 | . . . . . 1 . . . 1 1 Branch Access Points 3 | . . 1 1 1 . . . . . . Unreport Threat 1 | . . . . . 1 . . . . . Locate Traps 5 | . 1 2 . . 2 . . . . . Hauler Manifests 3 | . . 1 1 . . 1 . . . . Zone Layout 6 | . . 2 . 1 2 1 . . . . Fabricator Hacks . | . . . . . . . . . . . Repair Station Hacks . | . . . . . . . . . . . Recycling Unit Hacks . | . . . . . . . . . . . Scanalyzer 4 | . . 2 . 2 . . . . . . Insert Component 4 | . . 2 . 2 . . . . . . Garrison Access Hacks . | . . . . . . . . . . . Unauthorized Hacks 20 | . 5 3 4 1 1 6 . . . . Terminals 9 | . 1 2 3 1 1 1 . . . . Botnet 8 | . 1 2 2 1 1 1 . . . . Operators 1 | . . . 1 . . . . . . . Fabricators . | . . . . . . . . . . . Repair Stations . | . . . . . . . . . . . Recycling Units 11 | . 4 1 1 . . 5 . . . . Reject 2 | . 2 . . . . . . . . . Mask 2 | . 2 . . . . . . . . . Tunnel 7 | . . 1 1 . . 5 . . . . Scanalyzers . | . . . . . . . . . . . Garrison Access . | . . . . . . . . . . . Data Cores Recovered . | . . . . . . . . . . . Used . | . . . . . . . . . . . Hacking Detections 36 | . 7 7 2 8 5 6 1 . . . Full Trace Events 5 | . 2 1 . 1 . . 1 . . . Feedback Events 1 | . 1 . . . . . . . . . Corruption 1 | . 1 . . . . . . . . . Feedback Blocked . | . . . . . . . . . . . Robot Schematics Acquired . | . . . . . . . . . . . Robots Built . | . . . . . . . . . . . Authchips . | . . . . . . . . . . . Time . | . . . . . . . . . . . Total Robot Build Rating . | . . . . . . . . . . . Part Schematics Acquired 1 | . . 1 . . . . . . . . Parts Built . | . . . . . . . . . . . Authchips . | . . . . . . . . . . . Time . | . . . . . . . . . . . Total Part Build Rating . | . . . . . . . . . . . Parts Repaired . | . . . . . . . . . . . Time . | . . . . . . . . . . . Parts Recycled . | . . . . . . . . . . . Recycled Matter . | . . . . . . . . . . . Retrieved Matter . | . . . . . . . . . . . Retrieved Components . | . . . . . . . . . . . Parts Scanalyzed 1 | . . . . 1 . . . . . . Part Schematics Acquired . | . . . . . . . . . . . Parts Damaged . | . . . . . . . . . . . Bothacking | -11 -10 -9 -8 -7 -7 -7 -5 -5 -5 -5 ------------ Run | Jun Mat Mat Mat Fac Sto Rec Fac Upp Upp War Used RIF Installer . | . . . . . . . . . . . Robots Hacked . | . . . . . . . . . . . Non-combat . | . . . . . . . . . . . Combat . | . . . . . . . . . . . Robot Hacks Applied . | . . . . . . . . . . . Relay Couplers Released . | . . . . . . . . . . . Fabnet Peak Effective % . | . . . . . . . . . . . Robots Rewired 10 | . . . . . . 10 . . . . Allies Hacked . | . . . . . . . . . . . Hacks Repelled . | . . . . . . . . . . . Allies | -11 -10 -9 -8 -7 -7 -7 -5 -5 -5 -5 -------- Run | Jun Mat Mat Mat Fac Sto Rec Fac Upp Upp War Total Allies 20 | . . . . . 10 10 . . . . Largest Group 10 | . . . . . 10 10 10 . . . Highest-Rated Group 215 | . . . . . 173 215 215 . . . Highest-Rated Ally 40 | . . . . . 29 40 40 . . . Total Orders . | . . . . . . . . . . . Ally Attacks 43 | . . . . . 15 6 22 . . . Total Damage 549 | . . . . . 178 90 281 . . . Kills 4 | . . . . . 1 1 2 . . . Allies Corrupted . | . . . . . . . . . . . Allies Melted . | . . . . . . . . . . . Intel | -11 -10 -9 -8 -7 -7 -7 -5 -5 -5 -5 ------- Run | Jun Mat Mat Mat Fac Sto Rec Fac Upp Upp War Robot Analysis Total 4 | . 2 1 1 . . . . . . . Derelict Logs Recovered 4 | . . . . . . . . 1 3 . Drone Launches . | . . . . . . . . . . . Drone Recoveries . | . . . . . . . . . . . Exploration | -11 -10 -9 -8 -7 -7 -7 -5 -5 -5 -5 ------------- Run | Jun Mat Mat Mat Fac Sto Rec Fac Upp Upp War Turns Passed 15303 | 139 1336 2392 1318 1591 817 1106 521 1039 3395 1649 Spaces Moved 7308 | 67 859 994 465 600 357 597 231 786 1699 653 Core 37 | 6 29 . . . . . . . . 2 Treads 1463 | 61 248 22 465 600 65 . . . 2 . Legs . | . . . . . . . . . . . Wheels 5808 | . 582 972 . . 292 597 231 786 1697 651 Hover . | . . . . . . . . . . . Flight . | . . . . . . . . . . . Fastest Speed 50 | 50 80 80 235 230 160 160 130 130 115 150 Average Speed 176 | 151 109 191 239 231 172 160 150 130 176 233 Slowest Speed 1550 | 160 200 320 240 235 230 160 160 130 570 1550 Overloaded Moves . | . . . . . . . . . . . Propulsion Burnouts . | . . . . . . . . . . . Robots Hopped . | . . . . . . . . . . . Cave-ins Triggered . | . . . . . . . . . . . Exploration Rate (%) 63 | 5 100 80 37 22 73 99 8 87 98 87 Regions Visited 10 Branch Regions 5 Pre-discovered Areas 8 | . . 1 1 . . 5 . . 1 . Known Exits Taken 1 | . . . . 1 . . . . . . Unknown Exits Taken 9 | 1 1 1 1 . 1 1 1 1 1 . Scrap Searched 5 | . . . . . . . . 3 2 . Spaces Dug 30 | . . . . . 2 . 1 . 27 . Terrain Destroyed 153 | . . 24 13 21 15 9 14 1 48 8 Melee . | . . . . . . . . . . . Projectile 91 | . . . . 2 15 9 14 1 48 2 AOE 62 | . . 24 13 19 . . . . . 6 Terrain Rammed . | . . . . . . . . . . . Walls Destroyed . | . . . . . . . . . . . Machines Disabled . | . . . . . . . . . . . Actions | -11 -10 -9 -8 -7 -7 -7 -5 -5 -5 -5 --------- Run | Jun Mat Mat Mat Fac Sto Rec Fac Upp Upp War Total 8626 | 88 1046 1263 578 719 462 735 324 796 1890 725 Wait 400 | 2 48 94 40 34 44 46 38 . 35 19 Move 7298 | 66 858 993 464 599 356 596 230 785 1698 653 Hop . | . . . . . . . . . . . Pick Up 122 | 6 8 36 10 22 8 4 6 5 14 3 Fast Attach 22 | 6 7 2 . 1 . . 1 . 3 2 Attach 55 | . 4 13 7 7 5 . 5 3 7 4 Detach . | . . . . . . . . . . . Swap . | . . . . . . . . . . . Drop 47 | 1 4 4 4 14 3 5 6 . 2 4 Fire 605 | 7 117 121 53 42 46 7 38 3 131 40 Melee . | . . . . . . . . . . . Ram . | . . . . . . . . . . . Kick . | . . . . . . . . . . . Crush . | . . . . . . . . . . . Escape Stasis . | . . . . . . . . . . . Rewire 77 | . . . . . . 77 . . . . Trap . | . . . . . . . . . . . Miscellaneous . | . . . . . . . . . . . Route ------- -11/Junkyard -10/Materials (discovered 5 exits: *Mat x3 / [*Min x2]) -9/Materials (discovered 5 exits: *Mat x3 / *Min x2) -8/Materials -7/Factory (discovered 5 exits: [*Fac] / *Sto x2 / *Low x2) -7/Storage (discovered 2 exits: [*Fac] / *Rec) -7/Recycling -5/Factory -5/Upper Caves -5/Upper Caves (discovered 2 exits: [*Fac] / *War) -5/Warlord History --------- Turn | Location | Event 6 | -11/Junkyard | Discovered new exit (range 16) 140 | -11/Junkyard | Entered Materials 211 | -10/Materials | Discovered new exit (range 15) 311 | -10/Materials | Build established: Mutant 595 | -10/Materials | Discovered new exit (range 15) 855 | -10/Materials | Discovered new exit (range 4) 1070 | -10/Materials | Discovered new exit (range 5) 1118 | -10/Materials | Core integrity fell below 50% 1138 | -10/Materials | Lost 3 parts (2n1u) 1235 | -10/Materials | Discovered new exit (range 16) 1476 | -10/Materials | Entered another Materials area 1476 | -9/Materials | Evolved 2 slots: Utility x2 1490 | -9/Materials | Build established: Scavenger-Mutant 1856 | -9/Materials | Build established: Mutant 2371 | -9/Materials | Identified exit to Mines 2456 | -9/Materials | Central database locked down 2597 | -9/Materials | Discovered new exit (range 14) 2981 | -9/Materials | Discovered new exit (range 14) 3620 | -9/Materials | Discovered new exit (range 16) 3668 | -9/Materials | Core integrity fell below 50% 3787 | -9/Materials | Core integrity fell below 20% 3868 | -9/Materials | Entered another Materials area 3868 | -8/Materials | Evolved 2 slots: Propulsion x1, Utility x1 3963 | -8/Materials | Garrison activated, responded to threat 4282 | -8/Materials | Build established: Scavenger-Mutant 4608 | -8/Materials | Discovered new exit (range 6) 4675 | -8/Materials | Central database locked down 4877 | -8/Materials | Garrison activated, responded to threat 5068 | -8/Materials | First assault squad dispatched 5186 | -8/Materials | Entered Factory 5186 | -7/Factory | Evolved 2 slots: Propulsion x1, Weapon x1 5193 | -7/Factory | Lost 3 parts (1n1u1w) 5441 | -7/Factory | Discovered new exit (range 9) 5532 | -7/Factory | Build established: Tank 5632 | -7/Factory | Identified exit to Storage 5632 | -7/Factory | Identified exit to Lower Caves 6175 | -7/Factory | Garrison activated, responded to threat 6777 | -7/Factory | Entered Storage 6815 | -7/Storage | Assisted by bots powering up and referring to "LRC-V3" 7354 | -7/Storage | Discovered new exit (range 5) 7382 | -7/Storage | Garrison activated, responded to threat 7588 | -7/Storage | Used back door to open Recycling access 7588 | -7/Storage | Discovered new exit (range 5) 7594 | -7/Storage | Entered Recycling 7595 | -7/Recycling | Found Scrap Engine 7952 | -7/Recycling | Discovered new exit (range 16) 8700 | -7/Recycling | Entered Factory 8700 | -5/Factory | Accompanied by 10 allies 8700 | -5/Factory | Evolved 4 slots: Power x1, Propulsion x1, Utility x2 8814 | -5/Factory | Build established: Commander-Tank 9000 | -5/Factory | Search patrols dispatched 9176 | -5/Factory | Discovered new exit (range 9) 9215 | -5/Factory | Cargo convoy interrupted 9221 | -5/Factory | Entered Upper Caves 9340 | -5/Upper Caves | Build established: Gunner 9445 | -5/Upper Caves | Attracted the attention of an 0b10 checkpoint 9474 | -5/Upper Caves | Learned Factory trap positions 9511 | -5/Upper Caves | Encountered a Warlord checkpoint 10253 | -5/Upper Caves | Discovered new exit (range 5) 10260 | -5/Upper Caves | Entered another Upper Caves area 10377 | -5/Upper Caves | Discovered new exit (range 4) 10379 | -5/Upper Caves | Attracted the attention of an 0b10 checkpoint 10761 | -5/Upper Caves | Learned Factory emergency access door positions 10789 | -5/Upper Caves | Encountered a Warlord checkpoint 10884 | -5/Upper Caves | Learned Factory emergency access door positions 12150 | -5/Upper Caves | Build established: Mutant 12573 | -5/Upper Caves | Lost 3 parts (1p1n1u) 12708 | -5/Upper Caves | Spotted B-75 Beast 12775 | -5/Upper Caves | Destroyed B-75 Beast 12791 | -5/Upper Caves | Lost 4 parts (1n2u1w) 12971 | -5/Upper Caves | Learned location of Armory (-4) 12997 | -5/Upper Caves | Found Alien Artifact 13630 | -5/Upper Caves | Discovered new exit (range 11) 13650 | -5/Upper Caves | Attracted the attention of an 0b10 outpost 13655 | -5/Upper Caves | Entered Warlord 14208 | -5/Warlord | Build established: Gunner 14760 | -5/Warlord | Warlord's base attacked by MAIN.C 14795 | -5/Warlord | Found Prototype Launcher 14968 | -5/Warlord | Met Warlord 15110 | -5/Warlord | Warlord forces counterattacked 15161 | -5/Warlord | Spotted Striker 15162 | -5/Warlord | Spotted Executioner 15167 | -5/Warlord | Destroyed Executioner 15170 | -5/Warlord | Destroyed Striker 15210 | -5/Warlord | P-80 Master assimilated allied 8D-ATX(M) 15239 | -5/Warlord | Spotted Executioner 15264 | -5/Warlord | Core integrity fell below 50% 15265 | -5/Warlord | Identified Vortex Catalyst Activator 15266 | -5/Warlord | Destroyed Executioner 15293 | -5/Warlord | Core integrity fell below 20% 15304 | -5/Warlord | Destroyed by Executioner with Helical Railgun Last Messages --------------- 15269_ Penetrated by Slug. 15272_ Vortex Catalyst Activator destroyed. 15272_ Penetrated by Slug. 15273_ G-50 Soldier destroyed. 15273_ X-82 Rainmaker destroyed. 15274_ Penetrated by Slug. 15274_ Slug penetrates Wall. 15275_ Penetrated by Slug. 15279_ Slug penetrates Wall. 15279_ Penetrated by Slug. 15280_ Slug penetrates Wall. 15283_ Penetrated by Slug. 15283_ Hvy. Missile Launcher destroyed. 15286_ Penetrated by Slug. 15287_ System corrupted: Heat flow error (+205). 15287_ Penetrated by Slug. 15295_ Slug penetrates Wall. 15296_ Penetrated by Slug. 15302_ Scrap Engine destroyed. 15302_ Penetrated by Slug. Map ----- +----------------------------------------------------+ | ###??????????????????????????#/ =[# #?????? | | #??##########????????????????# ## ##?????? | | +? #????????????????# ## #??????? | | #? #????????????######+#### #??????? | | # #????????????# # #??????? | | # #????????????# # ^ #??????? | | + #????????????# + ^ #??????? | | # #????????????# # #??????? | | # #????????????###### """" #??????? | | #?###########?????????????????# """" #??????? | | ###############???????????????# """" #??????? | | # #???????????????# """" #??????? | | # #?###############+## ^ #??????? | | # ## # # #??????? | | # """ """ """ ## # # #??????? | | # """ """ """ ?# # # #??????? | | + """ """ """??# # + #??????" | | ############???# [ # ###### #?????#" | | # #????# | [ # #????# #?????#" | | # #????# | [ # #?#### #######" | | # #????# " #?# # " | | # #????# # #?# # " | | + #????#+#####;;##;#;#;###;#=[]%=%% # " | | # ###### !!!!! ![ %%* =% % "^ | | # + !%[ %=!=%!=*!%]%= % " | | # ###### [@]!%%% !%% |=*[ % "^ | | ###########????# %/ [! [!%%% / [ " | | #?????????## #+#;+####; = %= * # " | | #??????????### ^ ?? # % = * # " | | """ #????????????# ? # ; % % # " | | """ #????????????# # ; [ #######" | | """ #????????????# # = = #?????#" | | """ #???????????############ % #?????#" | | """ #?????####??# ## #??????" | | #????? #??# ## = ##?????? | | ####+#???? #??# # " #?????? | | ##?# #???? #??# # """ #?????? | | ### ##?? #??# + "" """ #?????? | | # #??# # #?????? | | + #??# # #?????? | | # #??# # """ """ #??#### | | ## # ##########+### """ """ ### | | ### # # # """ """ + | | #?# + # + #### | | #?# # # # #??? | | ### ######### # ###+######## ##??? | | ## #??????# # # ## #???### | | # ######## / + ## ##?##### | | # + # # ## #?? | | # ######## # # ## #? | +----------------------------------------------------+ Best States ------------- Heat Dissipation 81 Energy Generation 28 Energy Capacity 495 Matter Stores 300 Matter Capacity 300 Sight Range 16 Robot Scan Range 15 Terrain Scan Range 16 Terrain Scan Density 10 Armor Coverage 375 Resistance: KI 20 Resistance: TH 15 Evasion (%) 44 Targeting Accuracy 13 Core Analysis 6 Recoil Reduction 4 Item Schematics ----------------- Huge Storage Unit | -9/Materials | Hacked Robot Schematics ------------------ None Fabricated ------------ Nothing Alien Tech Used ----------------- None Achievements -------------- None Challenges ------------ Sticky Parts Game ------ Seed ReinforcedIonicWand Manual? 0 Play Time 02:15:10 Cumulative 450.0 hours Start 2023.03.03 @ 16:54:49 End 2023.03.04 @ 10:30:07 Sessions 5 Manual Loads 0 Difficulty Rogue Special Mode None Game No. 82 Rogue 75 Adventurer 1 Explorer 6 Win Type - Total 35 Types 11/3/12/1/1/1/4/1/1 Lore% 91 Gallery% 92 Achievement% 83 Wizard Run 0 Options --------- ASCII 0 Keyboard 0 Movement Mouse Keybinds 0 Fullscreen 1 Font 18/SmallcapsGlow Map View 76x50 Tactical HUD 1 Map Filters NONE Filters NONE Steam 1 RUN: a9ba3dc5-9fac-46af-9f49-3c5da3b29d9b